fUSD/lending_fUSD_20260611
["ID","MTS","AMOUNT","RATE_DAILY","PERIOD"]
[424805177,1781173865000,-1422.0,0.00032232,60]
[424805173,1781173865000,-5000.0,0.00032232,120]
[424805170,1781173865000,-1100.0,0.00032232,60]
[424805171,1781173865000,-1038.0,0.00032232,60]
[424805165,1781173865000,-151.0,0.00032232,7]
[424805174,1781173865000,-5000.0,0.00032232,120]
[424805175,1781173865000,-4642.0,0.00032232,60]
[424805157,1781173865000,-1050.408206,0.00032232,7]
[424805172,1781173865000,-5000.0,0.00032232,120]
[424805161,1781173865000,-1709.873556,0.00032232,7]
[424805137,1781173865000,-472.0,0.00032194,30]
[424805151,1781173865000,-1881.019781,0.00032232,7]
[424805176,1781173865000,-1550.0,0.00032232,60]
[424805132,1781173865000,-183.8116149,0.00032181,30]
[424805130,1781173865000,-183.8116149,0.00032145,30]
[424805131,1781173865000,-155.85898862,0.00032164,30]
[424805134,1781173865000,-254.0,0.00032192,30]
[424805136,1781173865000,-449.0,0.00032194,30]
[424805133,1781173865000,-418.0,0.00032192,30]
[424805139,1781173865000,-299.0,0.00032194,30]
[424805140,1781173865000,-531.0,0.00032194,30]
[424805135,1781173865000,-1230.0,0.00032192,30]
[424805159,1781173865000,-1709.873556,0.00032232,7]
[424805138,1781173865000,-1291.0,0.00032194,30]
[424805142,1781173865000,-1672.4,0.0003221,5]
[424805143,1781173865000,-183.8116149,0.00032217,30]
[424805144,1781173865000,-151.0,0.00032229,7]
[424805145,1781173865000,-100000.0,0.00032232,90]
[424805146,1781173865000,-100000.0,0.00032232,60]
[424805147,1781173865000,-100000.0,0.00032232,120]
[424805149,1781173865000,-100000.0,0.00032232,7]
[424805150,1781173865000,-151.0,0.00032232,7]
[424805148,1781173865000,-100000.0,0.00032232,30]
[424805152,1781173865000,-1881.019781,0.00032232,7]
[424805141,1781173865000,-308.0,0.00032194,30]
[424805180,1781173865000,-476.0,0.00032238,30]
[424805200,1781173865000,-150.0,0.00032383,2]
[424805179,1781173865000,-441.0,0.00032238,30]
[424805208,1781173865000,-183.8116149,0.00032431,30]
[424805207,1781173865000,-942.52655985,0.00032406,2]
[424805206,1781173865000,-666.0,0.00032404,15]
[424805213,1781173865000,-151.0,0.00032477,7]
[424805210,1781173865000,-155.85898862,0.00032466,30]
[424805212,1781173865000,-183.8116149,0.00032467,30]
[424805178,1781173865000,-2325.0,0.00032237,11]
[424805209,1781173865000,-165.68191016,0.00032448,2]
[424805215,1781173865000,-164.33069,0.00032477,7]
[424805216,1781173865000,-164.33069,0.00032477,7]
[424805217,1781173865000,-164.33069,0.00032477,7]
[424805218,1781173865000,-164.33069,0.00032477,7]
[424805219,1781173865000,-711.920535,0.00032477,7]
[424805220,1781173865000,-711.920535,0.00032477,7]
[424805223,1781173865000,-2353.0,0.00032495,11]
[424805221,1781173865000,-711.920535,0.00032477,7]
[424805222,1781173865000,-711.920535,0.00032477,7]
[424805224,1781173865000,-1000.0,0.000325,2]
[424805226,1781173865000,-395.7154119,0.000325,120]
[424805225,1781173865000,-1000.0,0.000325,14]
[424805228,1781173865000,-183.8116149,0.00032503,30]
[424805205,1781173865000,-1134.51961,0.000324,30]
[424805214,1781173865000,-151.0,0.00032477,7]
[424805211,1781173865000,-200.0,0.00032466,2]
[424805201,1781173865000,-183.8116149,0.00032395,30]
[424805182,1781173865000,-1440.0,0.00032238,30]
[424805183,1781173865000,-2067.0,0.00032238,30]
[424805202,1781173865000,-1134.5196,0.000324,30]
[424805184,1781173865000,-183.8116149,0.00032252,30]
[424805186,1781173865000,-1575.74,0.00032288,33]
[424805185,1781173865000,-1103.02,0.00032257,30]
[424805188,1781173865000,-150.0,0.00032295,7]
[424805190,1781173865000,-155.85898862,0.00032301,30]
[424805187,1781173865000,-183.8116149,0.00032288,30]
[424805189,1781173865000,-350.0,0.00032299,5]
[424805194,1781173865000,-1923.19502874,0.00032314,30]
[424805181,1781173865000,-380.0,0.00032238,30]
[424805193,1781173865000,-150.0,0.00032314,30]
[424805191,1781173865000,-150.0,0.00032314,30]
[424805204,1781173865000,-1134.5196,0.000324,30]
[424805199,1781173865000,-5000.0,0.00032379,30]
[424805196,1781173865000,-261.38,0.00032329,30]
[424805197,1781173865000,-183.8116149,0.0003236,30]
[424805203,1781173865000,-1134.5196,0.000324,30]
[424805227,1781173865000,-747.0,0.000325,40]
[424805195,1781173865000,-183.8116149,0.00032324,30]
[424805192,1781173865000,-3394.96957866,0.00032314,30]
[424805198,1781173865000,-2110.0,0.00032377,2]
[424805238,1781173866000,-578.7103,0.00032603,15]
[424805245,1781173866000,-578.7103,0.00032603,15]
[424805244,1781173866000,-578.7103,0.00032603,15]
[424805243,1781173866000,-578.7103,0.00032603,15]
[424805240,1781173866000,-578.7103,0.00032603,15]
[424805237,1781173866000,-578.7103,0.00032603,15]
[424805236,1781173866000,-578.7103,0.00032603,15]
[424805242,1781173866000,-578.7103,0.00032603,15]
[424805233,1781173866000,-155.85898862,0.00032603,30]
[424805239,1781173866000,-578.7103,0.00032603,15]
[424805235,1781173866000,-578.7103,0.00032603,15]
[424805234,1781173866000,-578.7103,0.00032603,15]
[424805229,1781173866000,-183.8116149,0.00032538,30]
[424805230,1781173866000,-183.8116149,0.00032574,30]
[424805231,1781173866000,-1801.13,0.00032588,2]
[424805232,1781173866000,-419802.04405904,0.000326,3]
[424805241,1781173866000,-578.7103,0.00032603,15]
[424805251,1781173866000,-578.7103,0.00032603,15]
[424805247,1781173866000,-578.7103,0.00032603,15]
[424805248,1781173866000,-578.7103,0.00032603,15]
[424805249,1781173866000,-578.7103,0.00032603,15]
[424805265,1781173866000,-3269.32244618,0.00027397,10]
[424805266,1781173866000,-1693.14437028,0.00027397,10]
[424805263,1781173866000,-1658.27240002,0.00027397,10]
[424805264,1781173866000,-2726.55567776,0.00027397,10]
[424805258,1781173866000,-183.8116149,0.00032646,30]
[424805259,1781173866000,-151.0,0.0003267,7]
[424805256,1781173866000,-261.38,0.00032603,30]
[424805261,1781173866000,-211.29368997,0.00032674,14]
[424805257,1781173866000,-183.8116149,0.0003261,30]
[424805262,1781173866000,-838111.71716196,0.00032677,7]
[424805254,1781173866000,-694.44,0.00032603,7]
[424805255,1781173866000,-979.61,0.00032603,30]
[424805253,1781173866000,-578.71040303,0.00032603,15]
[424805252,1781173866000,-578.7103,0.00032603,15]
[424805246,1781173866000,-578.7103,0.00032603,15]
[424805250,1781173866000,-578.7103,0.00032603,15]
[424805260,1781173866000,-193.621985,0.0003267,7]
[424805271,1781173867000,-963.53510576,0.00027397,10]
[424805268,1781173867000,-15886.23871763,0.0001405,2]
[424805270,1781173867000,-3560.941,0.00021299,2]
[424805272,1781173867000,-178.68080727,0.00028971,2]
[424805267,1781173867000,-188.62780891,0.00013698,2]
[424805274,1781173867000,-178.68080727,0.00031578,2]
[424805279,1781173867000,250.35101883,0.0001,5]
[424805269,1781173867000,-153.08496381,0.0002,20]
[424805275,1781173867000,-6596.74219186,0.00032677,7]
[424805277,1781173867000,-500.83198403,0.00032677,7]
[424805276,1781173867000,-41424.78511297,0.00032677,7]
[424805278,1781173867000,-174147.50549897,0.00032677,7]
[424805273,1781173867000,-441.70316573,0.000299,2]
[424805280,1781173972000,214.02370059,0.0001,5]
[424805292,1781174955000,-464.05255479,8.415e-05,2]
[424805294,1781175032000,-665.72995843,8.415e-05,2]
[424805295,1781175032000,-3734.60848678,8.415e-05,2]
[424805296,1781175032000,-269.967,8.415e-05,2]
[424805299,1781175032000,-394.68030262,8.486e-05,2]
[424805298,1781175032000,-19373.41089374,8.486e-05,2]
[424805300,1781175032000,-888.10502708,8.486e-05,2]
[424805297,1781175032000,-150.0,8.473e-05,2]
[424805351,1781175033000,-280.0,8.486e-05,2]
[424805348,1781175033000,-13526.45730373,8.486e-05,2]
[424805350,1781175033000,-2108.94415124,8.486e-05,2]
[424805349,1781175033000,-391.78230031,8.486e-05,2]
[424805347,1781175033000,-99184.44479062,8.486e-05,2]
[424805380,1781175038000,-500.0,8.586e-05,2]
[424805378,1781175038000,-500.0,8.586e-05,2]
[424805382,1781175038000,-194.05473375,8.586e-05,2]
[424805387,1781175038000,-500.0,8.586e-05,2]
[424805392,1781175038000,-500.0,8.586e-05,2]
[424805394,1781175038000,-500.0,8.586e-05,2]
[424805364,1781175038000,-500.0,8.586e-05,2]
[424805400,1781175038000,-500.0,8.586e-05,2]
[424805396,1781175038000,-500.0,8.586e-05,2]
[424805385,1781175038000,-305.94526625,8.586e-05,2]
[424805368,1781175038000,-500.0,8.586e-05,2]
[424805375,1781175038000,-500.0,8.586e-05,2]
[424805366,1781175038000,-500.0,8.586e-05,2]
[424805361,1781175038000,-545.07911136,8.586e-05,2]
[424805373,1781175038000,-500.0,8.586e-05,2]
[424805359,1781175038000,-150.0,8.585e-05,2]
[424805370,1781175038000,-500.0,8.586e-05,2]
[424805360,1781175038000,-500.0,8.586e-05,2]
[424805357,1781175038000,-1049.53799999,8.486e-05,2]
[424805358,1781175038000,-13818.83288859,8.486e-05,2]
[424805356,1781175038000,-1110.68474208,8.486e-05,2]
[424805390,1781175038000,-500.0,8.586e-05,2]
[424805362,1781175038000,-500.0,8.586e-05,2]
[424805398,1781175038000,-500.0,8.586e-05,2]
[424805416,1781175038000,-500.0,8.586e-05,2]
[424805407,1781175038000,-500.0,8.586e-05,2]
[424805453,1781175038000,-500.0,8.586e-05,2]
[424805455,1781175038000,-500.0,8.586e-05,2]
[424805451,1781175038000,-500.0,8.586e-05,2]
[424805449,1781175038000,-500.0,8.586e-05,2]
[424805447,1781175038000,-500.0,8.586e-05,2]
[424805442,1781175038000,-477.81544259,8.586e-05,2]
[424805445,1781175038000,-500.0,8.586e-05,2]
[424805440,1781175038000,-500.0,8.586e-05,2]
[424805426,1781175038000,-500.0,8.586e-05,2]
[424805437,1781175038000,-221.45780652,8.586e-05,2]
[424805435,1781175038000,-336.70921446,8.586e-05,2]
[424805405,1781175038000,-500.0,8.586e-05,2]
[424805433,1781175038000,-462.59419407,8.586e-05,2]
[424805430,1781175038000,-500.0,8.586e-05,2]
[424805421,1781175038000,-500.0,8.586e-05,2]
[424805419,1781175038000,-500.0,8.586e-05,2]
[424805458,1781175038000,-500.0,8.586e-05,2]
[424805414,1781175038000,-500.0,8.586e-05,2]
[424805403,1781175038000,-500.0,8.586e-05,2]
[424805423,1781175038000,-500.0,8.586e-05,2]
[424805412,1781175038000,-500.0,8.586e-05,2]
[424805409,1781175038000,-500.0,8.586e-05,2]
[424805428,1781175038000,-251.23265456,8.586e-05,2]
[424805521,1781175039000,-500.0,0.00010202,2]
[424805516,1781175039000,-500.0,0.00010202,2]
[424805518,1781175039000,-500.0,0.00010202,2]
[424805515,1781175039000,-500.0,0.00010202,2]
[424805514,1781175039000,-500.0,0.00010202,2]
[424805517,1781175039000,-500.0,0.00010202,2]
[424805513,1781175039000,-500.0,0.00010202,2]
[424805512,1781175039000,-500.0,0.00010202,2]
[424805531,1781175039000,-4103.61,0.00010475,2]
[424805519,1781175039000,-500.0,0.00010202,2]
[424805523,1781175039000,-233.24958669,0.00010202,2]
[424805530,1781175039000,-1561.9,0.00010475,2]
[424805532,1781175039000,-9999.99,0.00010475,2]
[424805526,1781175039000,-1632.85,0.00010475,2]
[424805527,1781175039000,-499.99,0.00010475,2]
[424805524,1781175039000,-983.58,0.00010269,2]
[424805528,1781175039000,-9999.99,0.00010475,2]
[424805525,1781175039000,-433.0,0.00010388,2]
[424805529,1781175039000,-299.99,0.00010475,2]
[424805534,1781175039000,-150.99,0.00010475,2]
[424805533,1781175039000,-883.78,0.00010475,2]
[424805508,1781175039000,-500.0,0.00010202,2]
[424805522,1781175039000,-500.0,0.00010202,2]
[424805506,1781175039000,-280.0,9.954e-05,2]
[424805487,1781175039000,-250.0,9.257e-05,2]
[424805510,1781175039000,-500.0,0.00010202,2]
[424805460,1781175039000,-500.0,8.586e-05,2]
[424805464,1781175039000,-500.0,8.586e-05,2]
[424805466,1781175039000,-500.0,8.586e-05,2]
[424805470,1781175039000,-500.0,8.586e-05,2]
[424805468,1781175039000,-461.09389103,8.586e-05,2]
[424805462,1781175039000,-500.0,8.586e-05,2]
[424805482,1781175039000,-33277.9515,8.687e-05,2]
[424805474,1781175039000,-500.0,8.586e-05,2]
[424805473,1781175039000,-500.0,8.586e-05,2]
[424805476,1781175039000,-500.0,8.586e-05,2]
[424805511,1781175039000,-500.0,0.00010202,2]
[424805478,1781175039000,-500.0,8.586e-05,2]
[424805535,1781175039000,-983.58,0.00010526,2]
[424805484,1781175039000,-215.95576085,8.726e-05,2]
[424805491,1781175039000,-255.0,9.443e-05,2]
[424805489,1781175039000,-66873.15,9.433e-05,2]
[424805498,1781175039000,-458.76,9.543e-05,2]
[424805502,1781175039000,-1000.0,9.755e-05,2]
[424805500,1781175039000,-200.0,9.703e-05,2]
[424805493,1781175039000,-1834.64,9.465e-05,2]
[424805496,1781175039000,-2395.09,9.484e-05,2]
[424805504,1781175039000,-2697.3,9.822e-05,2]
[424805480,1781175039000,-300.0,8.586e-05,2]
[424805539,1781175039000,-458.76,0.00010736,2]
[424805520,1781175039000,-500.0,0.00010202,2]
[424805538,1781175039000,-94649.00486502,0.00010729,2]
[424805565,1781175039000,-87499.9321983,0.00012358,2]
[424805567,1781175039000,-3177.24774352,0.0001303,2]
[424805568,1781175039000,-458.76,0.00013122,2]
[424805570,1781175039000,-2000.0,0.00013366,2]
[424805569,1781175039000,-9434.04403685,0.00013215,2]
[424805571,1781175039000,-199.5,0.00013473,2]
[424805572,1781175039000,-87499.9321983,0.00013615,2]
[424805573,1781175039000,-500.0,0.00013698,2]
[424805575,1781175039000,-500.0,0.00013698,2]
[424805577,1781175039000,-500.0,0.00013698,2]
[424805579,1781175039000,-500.0,0.00013698,2]
[424805581,1781175039000,-590.60459875,0.00013698,2]
[424805584,1781175039000,-500.0,0.00013698,2]
[424805583,1781175039000,-500.0,0.00013698,2]
[424805582,1781175039000,-500.0,0.00013698,2]
[424805578,1781175039000,-500.0,0.00013698,2]
[424805586,1781175039000,-201.9159218,0.00013698,2]
[424805585,1781175039000,-179.84270164,0.00013698,2]
[424805588,1781175039000,-500.0,0.00013698,2]
[424805587,1781175039000,-500.0,0.00013698,2]
[424805589,1781175039000,-500.0,0.00013698,2]
[424805542,1781175039000,-20778.4890079,0.000109,2]
[424805590,1781175039000,-500.0,0.00013698,2]
[424805566,1781175039000,-1252.0,0.00012568,2]
[424805564,1781175039000,-170.92,0.00012329,2]
[424805580,1781175039000,-579.39543898,0.00013698,2]
[424805563,1781175039000,-2000.0,0.0001203,2]
[424805536,1781175039000,-2000.0,0.00010693,2]
[424805540,1781175039000,-983.58,0.00010783,2]
[424805555,1781175039000,-3281.17680624,0.00011187,2]
[424805537,1781175039000,-151.0,0.00010726,2]
[424805541,1781175039000,-2083.20542946,0.000109,2]
[424805544,1781175039000,-500.0,0.00010958,2]
[424805543,1781175039000,-500.0,0.00010958,2]
[424805545,1781175039000,-500.0,0.00010958,2]
[424805546,1781175039000,-150.0,0.00010959,2]
[424805547,1781175039000,-186.7,0.00010959,2]
[424805548,1781175039000,-245.62,0.00010989,2]
[424805549,1781175039000,-983.58,0.00011039,2]
[424805550,1781175039000,-3177.24774358,0.00011099,2]
[424805560,1781175039000,-3177.24774352,0.00011549,2]
[424805551,1781175039000,-3177.24774352,0.00011099,2]
[424805552,1781175039000,-87499.93219833,0.00011099,2]
[424805554,1781175039000,-87499.9321983,0.00011101,2]
[424805556,1781175039000,-2794.34668033,0.00011187,2]
[424805557,1781175039000,-340.9710952,0.00011288,2]
[424805559,1781175039000,-736.0,0.00011426,2]
[424805558,1781175039000,-983.58,0.00011296,2]
[424805553,1781175039000,-87499.9321983,0.00011099,2]
[424805561,1781175039000,-159.81,0.00011577,2]
[424805562,1781175039000,-458.76,0.00011929,2]
[424805628,1781175040000,-500.0,0.00013698,2]
[424805629,1781175040000,-500.0,0.00013698,2]
[424805630,1781175040000,-500.0,0.00013698,2]
[424805626,1781175040000,-500.0,0.00013698,2]
[424805627,1781175040000,-500.0,0.00013698,2]
[424805620,1781175040000,-500.0,0.00013698,2]
[424805631,1781175040000,-500.0,0.00013698,2]
[424805622,1781175040000,-500.0,0.00013698,2]
[424805625,1781175040000,-500.0,0.00013698,2]
[424805623,1781175040000,-500.0,0.00013698,2]
[424805624,1781175040000,-500.0,0.00013698,2]
[424805635,1781175040000,-500.0,0.00013698,2]
[424805642,1781175040000,-500.0,0.00013698,2]
[424805643,1781175040000,-500.0,0.00013698,2]
[424805646,1781175040000,-500.0,0.00013698,2]
[424805638,1781175040000,-500.0,0.00013698,2]
[424805640,1781175040000,-500.0,0.00013698,2]
[424805644,1781175040000,-500.0,0.00013698,2]
[424805645,1781175040000,-527.02640831,0.00013698,2]
[424805641,1781175040000,-632.16,0.00013698,2]
[424805637,1781175040000,-500.0,0.00013698,2]
[424805639,1781175040000,-500.0,0.00013698,2]
[424805648,1781175040000,-500.0,0.00013698,2]
[424805621,1781175040000,-500.0,0.00013698,2]
[424805658,1781175040000,-500.0,0.00013698,2]
[424805633,1781175040000,-500.0,0.00013698,2]
[424805618,1781175040000,-500.0,0.00013698,2]
[424805593,1781175040000,-500.0,0.00013698,2]
[424805617,1781175040000,-500.0,0.00013698,2]
[424805647,1781175040000,-500.0,0.00013698,2]
[424805595,1781175040000,-500.0,0.00013698,2]
[424805597,1781175040000,-500.0,0.00013698,2]
[424805596,1781175040000,-500.0,0.00013698,2]
[424805594,1781175040000,-500.0,0.00013698,2]
[424805592,1781175040000,-500.0,0.00013698,2]
[424805591,1781175040000,-500.0,0.00013698,2]
[424805598,1781175040000,-500.0,0.00013698,2]
[424805607,1781175040000,-500.0,0.00013698,2]
[424805608,1781175040000,-504.05769263,0.00013698,2]
[424805599,1781175040000,-500.0,0.00013698,2]
[424805600,1781175040000,-500.0,0.00013698,2]
[424805616,1781175040000,-500.0,0.00013698,2]
[424805605,1781175040000,-500.0,0.00013698,2]
[424805601,1781175040000,-500.0,0.00013698,2]
[424805606,1781175040000,-500.0,0.00013698,2]
[424805602,1781175040000,-473.88481406,0.00013698,2]
[424805604,1781175040000,-500.0,0.00013698,2]
[424805609,1781175040000,-500.0,0.00013698,2]
[424805611,1781175040000,-500.0,0.00013698,2]
[424805610,1781175040000,-500.0,0.00013698,2]
[424805614,1781175040000,-500.0,0.00013698,2]
[424805615,1781175040000,-500.0,0.00013698,2]
[424805613,1781175040000,-500.0,0.00013698,2]
[424805612,1781175040000,-500.0,0.00013698,2]
[424805619,1781175040000,-500.0,0.00013698,2]
[424805603,1781175040000,-500.0,0.00013698,2]
[424805649,1781175040000,-500.0,0.00013698,2]
[424805688,1781175040000,-500.0,0.00013699,2]
[424805651,1781175040000,-500.0,0.00013698,2]
[424805684,1781175040000,-500.0,0.00013699,2]
[424805683,1781175040000,-604.31288412,0.00013699,2]
[424805694,1781175040000,-500.0,0.00013699,2]
[424805685,1781175040000,-500.0,0.00013699,2]
[424805691,1781175040000,-500.0,0.00013699,2]
[424805686,1781175040000,-500.0,0.00013699,2]
[424805692,1781175040000,-500.0,0.00013699,2]
[424805687,1781175040000,-500.0,0.00013699,2]
[424805693,1781175040000,-500.0,0.00013699,2]
[424805689,1781175040000,-500.0,0.00013699,2]
[424805690,1781175040000,-500.0,0.00013699,2]
[424805696,1781175040000,-500.0,0.00013699,2]
[424805706,1781175040000,-250.0,0.00014,2]
[424805698,1781175040000,-500.0,0.00013699,2]
[424805699,1781175040000,-500.0,0.00013699,2]
[424805695,1781175040000,-500.0,0.00013699,2]
[424805697,1781175040000,-500.0,0.00013699,2]
[424805705,1781175040000,-4085.75542201,0.00013942,2]
[424805703,1781175040000,-10000.0,0.00013829,2]
[424805702,1781175040000,-2697.3,0.00013751,2]
[424805700,1781175040000,-500.0,0.00013699,2]
[424805704,1781175040000,-2129.0,0.0001383,2]
[424805701,1781175040000,-500.0,0.00013699,2]
[424805707,1781175040000,-20778.48900788,0.00014015,2]
[424805650,1781175040000,-500.0,0.00013698,2]
[424805678,1781175040000,-978.58,0.00013699,2]
[424805679,1781175040000,-500.0,0.00013699,2]
[424805708,1781175040000,-166.66,0.00014067,2]
[424805677,1781175040000,-200.0,0.00013699,2]
[424805680,1781175040000,-500.0,0.00013699,2]
[424805653,1781175040000,-500.0,0.00013698,2]
[424805652,1781175040000,-500.0,0.00013698,2]
[424805655,1781175040000,-500.0,0.00013698,2]
[424805656,1781175040000,-500.0,0.00013698,2]
[424805657,1781175040000,-500.0,0.00013698,2]
[424805659,1781175040000,-500.0,0.00013698,2]
[424805661,1781175040000,-500.0,0.00013698,2]
[424805660,1781175040000,-500.0,0.00013698,2]
[424805665,1781175040000,-500.0,0.00013698,2]
[424805663,1781175040000,-500.0,0.00013698,2]
[424805662,1781175040000,-500.0,0.00013698,2]
[424805668,1781175040000,-500.0,0.00013698,2]
[424805654,1781175040000,-500.0,0.00013698,2]
[424805670,1781175040000,-500.0,0.00013698,2]
[424805666,1781175040000,-500.0,0.00013698,2]
[424805681,1781175040000,-500.0,0.00013699,2]
[424805676,1781175040000,-451.09713554,0.00013698,2]
[424805674,1781175040000,-500.0,0.00013698,2]
[424805673,1781175040000,-238.48508219,0.00013698,2]
[424805671,1781175040000,-500.0,0.00013698,2]
[424805682,1781175040000,-500.0,0.00013699,2]
[424805672,1781175040000,-247.44478835,0.00013698,2]
[424805669,1781175040000,-500.0,0.00013698,2]
[424805667,1781175040000,-500.0,0.00013698,2]
[424805664,1781175040000,-500.0,0.00013698,2]
[424805675,1781175040000,-500.0,0.00013698,2]
[424805745,1781175041000,-10293.11852405,0.000156,2]
[424805752,1781175041000,-166.66,0.00015809,2]
[424805749,1781175041000,-10293.11852405,0.000157,2]
[424805747,1781175041000,-400.0,0.000156,2]
[424805740,1781175041000,-400.0,0.000153,2]
[424805743,1781175041000,-1613.0535,0.00015478,2]
[424805742,1781175041000,-400.0,0.000154,2]
[424805741,1781175041000,-10293.11852405,0.000154,2]
[424805751,1781175041000,-400.0,0.000157,2]
[424805739,1781175041000,-10293.11852405,0.000153,2]
[424805765,1781175041000,-10293.11852405,0.000161,2]
[424805763,1781175041000,-2000.0,0.0001604,2]
[424805767,1781175041000,-87499.9321983,0.00016129,2]
[424805772,1781175041000,-166.66,0.00016389,2]
[424805770,1781175041000,-10293.11852405,0.000162,2]
[424805755,1781175041000,-3177.24774352,0.00015993,2]
[424805761,1781175041000,-1672.7364795,0.00016026,2]
[424805759,1781175041000,-191.99780672,0.00016,2]
[424805757,1781175041000,-300.0,0.00016,2]
[424805774,1781175041000,-10293.11852405,0.000164,2]
[424805776,1781175041000,-1000.0,0.00016445,2]
[424805777,1781175041000,-10293.11852405,0.000165,2]
[424805775,1781175041000,-1533.0,0.00016438,2]
[424805738,1781175041000,-166.66,0.00015228,2]
[424805786,1781175041000,-87499.9321983,0.00017386,2]
[424805734,1781175041000,-400.0,0.000151,2]
[424805727,1781175041000,-5800.0,0.00014858,2]
[424805721,1781175041000,-5800.0,0.00014815,2]
[424805710,1781175041000,-458.76,0.00014315,2]
[424805711,1781175041000,-1500.0,0.00014382,2]
[424805709,1781175041000,-821.726453,0.00014284,2]
[424805714,1781175041000,-279.308268,0.00014577,2]
[424805712,1781175041000,-6395.52313493,0.00014406,2]
[424805716,1781175041000,-166.66,0.00014648,2]
[424805715,1781175041000,-172.503613,0.00014577,2]
[424805713,1781175041000,-3177.24774352,0.00014511,2]
[424805724,1781175041000,-5800.0,0.00014832,2]
[424805717,1781175041000,-222.367938,0.0001465,2]
[424805726,1781175041000,-5800.0,0.00014849,2]
[424805723,1781175041000,-5800.0,0.00014823,2]
[424805725,1781175041000,-5800.0,0.00014841,2]
[424805718,1781175041000,-2000.0,0.00014703,2]
[424805736,1781175041000,-150.0,0.000152,2]
[424805720,1781175041000,-216.675505,0.00014798,2]
[424805737,1781175041000,-1703.0,0.00015212,2]
[424805719,1781175041000,-8173.35130972,0.0001475,2]
[424805729,1781175041000,-87499.9321983,0.00014872,2]
[424805730,1781175041000,-5800.0,0.00014874,2]
[424805732,1781175041000,-183.378446,0.0001496,2]
[424805722,1781175041000,-168.90688265,0.00014819,2]
[424805733,1781175041000,-10293.11852405,0.000151,2]
[424805735,1781175041000,-153.0,0.00015144,2]
[424805731,1781175041000,-1555.5,0.0001493,2]
[424805728,1781175041000,-5800.0,0.00014866,2]
[424805779,1781175041000,-10293.11852405,0.000167,2]
[424805753,1781175041000,-10293.11852405,0.000159,2]
[424805783,1781175041000,-168.90688265,0.00017104,2]
[424805814,1781175041000,-151.0,0.00018766,2]
[424805816,1781175041000,-151.0,0.00018766,2]
[424805812,1781175041000,-151.0,0.00018766,2]
[424805815,1781175041000,-151.0,0.00018766,2]
[424805813,1781175041000,-151.0,0.00018766,2]
[424805819,1781175041000,-500.0,0.00018766,2]
[424805818,1781175041000,-151.0,0.00018766,2]
[424805823,1781175041000,-151.0,0.00018766,2]
[424805817,1781175041000,-151.0,0.00018766,2]
[424805821,1781175041000,-151.0,0.00018766,2]
[424805820,1781175041000,-151.0,0.00018766,2]
[424805822,1781175041000,-500.0,0.00018766,2]
[424805825,1781175041000,-500.0,0.00018766,2]
[424805831,1781175041000,-500.0,0.00018766,2]
[424805826,1781175041000,-151.0,0.00018766,2]
[424805827,1781175041000,-151.0,0.00018766,2]
[424805828,1781175041000,-500.0,0.00018766,2]
[424805835,1781175041000,-151.0,0.00018766,2]
[424805832,1781175041000,-151.0,0.00018766,2]
[424805830,1781175041000,-151.0,0.00018766,2]
[424805829,1781175041000,-151.0,0.00018766,2]
[424805824,1781175041000,-151.0,0.00018766,2]
[424805833,1781175041000,-151.0,0.00018766,2]
[424805834,1781175041000,-500.0,0.00018766,2]
[424805778,1781175041000,-1734.62772924,0.00016574,2]